Workbook

Sheet Výsledky PO
A1: Hospodařené příspěvkových organizací města Příbora v roce 2023
A3: údaje v Kč
A4: Mateřská škola Kamarád, Příbor, Frenštátská 1370 | B4: výnosy-náklady provozu/zřizovatel | D4: výnosy-náklady/KÚ + dotace | E4: Celkem
B5: HČ | C5: VČ | D5: HČ
A6: Výnosy | B6: 4075577.74 | C6: 4800 | D6: 15516397 | E6: =SUM(B6:D6) -> 19596774.74
A7: Náklady | B7: 3708313.4 | C7: 2600 | D7: 15516397 | E7: =SUM(B7:D7) -> 19227310.4
A8: Hospodářský výsledek | B8: =SUM(B6-B7) -> 367264.34 | C8: =SUM(C6-C7) -> 2200 | D8: =SUM(D6-D7) -> 0 | E8: =SUM(E6-E7) -> 369464.34
A10: Mateřská škola Příbor, Pionýrů 1519, okres Nový Jičín, příspěvková organizace | B10: výnosy-náklady provozu/zřizovatel | D10: výnosy-náklady/KÚ + dotace | E10: Celkem
B11: HČ | C11: VČ | D11: HČ
A12: Výnosy | B12: 1957362.94 | C12: 0 | D12: 6937341.91 | E12: =SUM(B12:D12) -> 8894704.85
A13: Náklady | B13: 1911058.73 | C13: 0 | D13: 6937341.91 | E13: =SUM(B13:D13) -> 8848400.64
A14: Hospodářský výsledek | B14: =SUM(B12-B13) -> 46304.21 | C14: =SUM(C12-C13) -> 0 | D14: =SUM(D12-D13) -> 0 | E14: =SUM(E12-E13) -> 46304.21
A16: Základní škola Příbor, Jičínská 486, okres Nový Jičín | B16: výnosy-náklady provozu/zřizovatel | D16: výnosy-náklady/KÚ + dotace | E16: Celkem
B17: HČ | C17: VČ | D17: HČ
A18: Výnosy | B18: 5511917.72 | C18: 50040 | D18: 35233743.08 | E18: =SUM(B18:D18) -> 40795700.8
A19: Náklady | B19: 5434880.97 | C19: 20802 | D19: 35233743.08 | E19: =SUM(B19:D19) -> 40689426.05
A20: Hospodářský výsledek | B20: =SUM(B18-B19) -> 77036.75 | C20: =SUM(C18-C19) -> 29238 | D20: =SUM(D18-D19) -> 0 | E20: =SUM(E18-E19) -> 106274.75
A22: Základní škola Npor. Loma Příbor Školní 1510 okres Nový Jičín, příspěvková organizace | B22: výnosy-náklady provozu/zřizovatel | D22: výnosy-náklady/KÚ + dotace | E22: Celkem
B23: HČ | C23: VČ | D23: HČ
A24: Výnosy | B24: 8068506.52 | C24: 1275152 | D24: 38081519.58 | E24: =SUM(B24:D24) -> 47425178.1
A25: Náklady | B25: 8065793.53 | C25: 1079808.75 | D25: 38081519.58 | E25: =SUM(B25:D25) -> 47227121.86
A26: Hospodářský výsledek | B26: =SUM(B24-B25) -> 2712.99 | C26: =SUM(C24-C25) -> 195343.25 | D26: =SUM(D24-D25) -> 0 | E26: =SUM(E24-E25) -> 198056.24
A28: Školní jídelna Komenského, Příbor, ul. Komenského čp. 458 | B28: výnosy-náklady provozu/zřizovatel | D28: výnosy-náklady/KÚ + dotace | E28: Celkem
B29: HČ | C29: VČ | D29: HČ
A30: Výnosy | B30: 5548768.94 | C30: 5126377.71 | D30: 4506865 | E30: =SUM(B30:D30) -> 15182011.65
A31: Náklady | B31: 5548768.94 | C31: 5122793.05 | D31: 4506865 | E31: =SUM(B31:D31) -> 15178426.99
A32: Hospodářský výsledek | B32: =SUM(B30-B31) -> 0 | C32: =SUM(C30-C31) -> 3584.66 | D32: =SUM(D30-D31) -> 0 | E32: =SUM(E30-E31) -> 3584.66
A35: LUNA PŘÍBOR, středisko volného času, příspěvková organizace | B35: výnosy-náklady provozu/zřizovatel | D35: výnosy-náklady/KÚ + dotace | E35: Celkem
B36: HČ | C36: VČ | D36: HČ
A37: Výnosy | B37: 2547519 | C37: 0 | D37: 3805306.64 | E37: =SUM(B37:D37) -> 6352825.64
A38: Náklady | B38: 2508853.94 | C38: 0 | D38: 3805306.64 | E38: =SUM(B38:D38) -> 6314160.58
A39: Hospodářský výsledek | B39: =SUM(B37-B38) -> 38665.06 | C39: =SUM(C37-C38) -> 0 | D39: =SUM(D37-D38) -> 0 | E39: =SUM(E37-E38) -> 38665.06
A41: Technické služby města Příbora, příspěvková organizace | B41: výnosy-náklady provozu/zřizovatel | D41: výnosy-náklady/KÚ + dotace | E41: Celkem
B42: HČ | C42: VČ | D42: HČ
A43: Výnosy | B43: 40463342.47 | C43: 2600313 | E43: =SUM(B43:D43) -> 43063655.47
A44: Náklady | B44: 40413188.23 | C44: 2114492.55 | E44: =SUM(B44:D44) -> 42527680.78
A45: Hospodářský výsledek | B45: =SUM(B43-B44) -> 50154.24 | C45: =SUM(C43-C44) -> 485820.45 | D45: =SUM(D43-D44) -> 0 | E45: =SUM(E43-E44) -> 535974.69
